fUSD/lending_fUSD_20260420
["ID","MTS","AMOUNT","RATE_DAILY","PERIOD"]
[420846621,1776630633132,-500.0,0.00010174,2]
[420846623,1776630633142,-500.0,0.00010174,2]
[420846625,1776630633152,-500.0,0.00010174,2]
[420846627,1776630633163,-500.0,0.00010174,2]
[420846629,1776630633172,-500.0,0.00010174,2]
[420846631,1776630633182,-500.0,0.00010174,2]
[420846633,1776630633191,-500.0,0.00010174,2]
[420846635,1776630633200,-500.0,0.00010174,2]
[420846637,1776630633209,-500.0,0.00010174,2]
[420846639,1776630633219,-500.0,0.00010174,2]
[420846641,1776630633228,-500.0,0.00010174,2]
[420846643,1776630633237,-500.0,0.00010174,2]
[420846645,1776630633247,-236.16329328,0.00010174,2]
[420846647,1776630633256,-539.88877352,0.00010174,2]
[420846649,1776630633265,-539.88877352,0.00010174,2]
[420846651,1776630633274,-539.88877352,0.00010174,2]
[420846653,1776630633283,-539.88877352,0.00010174,2]
[420846655,1776630633293,-539.88877352,0.00010174,2]
[420846657,1776630633302,-539.88877352,0.00010174,2]
[420846659,1776630633312,-539.88877352,0.00010174,2]
[420846661,1776630633321,-539.88877352,0.00010174,2]
[420846663,1776630633330,-539.88877352,0.00010174,2]
[420846665,1776630633340,-539.88877352,0.00010174,2]
[420846668,1776630633350,-539.88877352,0.00010174,2]
[420846670,1776630633359,-539.88877352,0.00010174,2]
[420846672,1776630633369,-539.88877352,0.00010174,2]
[420846674,1776630633379,-539.88877352,0.00010174,2]
[420846676,1776630633388,-539.88877352,0.00010174,2]
[420846678,1776630633397,-539.88877352,0.00010174,2]
[420846680,1776630633406,-539.88877352,0.00010174,2]
[420846682,1776630633416,-539.88877352,0.00010174,2]
[420846684,1776630633425,-539.88877352,0.00010174,2]
[420846686,1776630633434,-539.88877352,0.00010174,2]
[420846688,1776630633444,-539.88877352,0.00010174,2]
[420846690,1776630633453,-539.88877352,0.00010174,2]
[420846692,1776630633462,-539.88877352,0.00010174,2]
[420846694,1776630633471,-539.88877352,0.00010174,2]
[420846696,1776630633480,-539.88877352,0.00010174,2]
[420846698,1776630633490,-539.88877352,0.00010174,2]
[420846700,1776630633499,-539.88877352,0.00010174,2]
[420846702,1776630633508,-539.88877352,0.00010174,2]
[420846704,1776630633517,-539.88877352,0.00010174,2]
[420846706,1776630633527,-339.50599207,0.00010174,2]
[420846708,1776630633540,-200.38278145,0.00010174,2]
[420846710,1776630633549,-539.88877352,0.00010174,2]
[420846711,1776630633559,-539.88877352,0.00010174,2]
[420846712,1776630633569,-539.88877352,0.00010174,2]
[420846713,1776630633578,-539.88877352,0.00010174,2]
[420846714,1776630633588,-539.88877352,0.00010174,2]
[420846715,1776630633597,-539.88877352,0.00010174,2]
[420846716,1776630633607,-539.88877352,0.00010174,2]
[420846717,1776630633616,-539.88877352,0.00010174,2]
[420846718,1776630633625,-621.29862576,0.00010174,2]
[420846719,1776630633634,-621.29862576,0.00010174,2]
[420846720,1776630633644,-621.29862576,0.00010174,2]
[420846721,1776630633653,-621.29862576,0.00010174,2]
[420846722,1776630633662,-621.29862576,0.00010174,2]
[420846723,1776630633672,-621.29862576,0.00010174,2]
[420846724,1776630633681,-621.29862576,0.00010174,2]
[420846725,1776630633691,-621.29862576,0.00010174,2]
[420846726,1776630633700,-621.29862576,0.00010174,2]
[420846727,1776630633709,-621.29862576,0.00010174,2]
[420846728,1776630633718,-621.29862576,0.00010174,2]
[420846729,1776630633727,-539.88877352,0.00010174,2]
[420846730,1776630633737,-621.29862576,0.00010174,2]
[420846731,1776630633746,-1000.0,0.00010176,2]
[420846732,1776630633756,-1075.8,0.00010176,2]
[420846733,1776630633765,-984.38,0.00010176,2]
[420846734,1776630633774,-9999.99,0.00010176,2]
[420846735,1776630633784,-299.99,0.00010176,2]
[420846736,1776630633793,-999.99,0.00010176,2]
[420846737,1776630633802,-1551.81,0.00010176,2]
[420846738,1776630633811,-150.99,0.00010176,2]
[420846739,1776630633821,-290.98779049,0.00010177,2]
[420846740,1776630633830,-520.54738036,0.00010177,2]
[420846741,1776630633839,-500.0,0.00010177,2]
[420846742,1776630633849,-258.67083656,0.00010177,2]
[420846743,1776630633858,-500.0,0.00010177,2]
[420846744,1776630633867,-500.0,0.00010177,2]
[420846745,1776630633876,-500.0,0.00010177,2]
[420846746,1776630633886,-500.0,0.00010177,2]
[420846747,1776630633896,-500.0,0.00010177,2]
[420846748,1776630633906,-500.0,0.00010177,2]
[420846749,1776630633915,-472.06233551,0.00010177,2]
[420846750,1776630633924,-500.0,0.00010177,2]
[420846751,1776630633934,-500.0,0.00010177,2]
[420846752,1776630633944,-150.0,0.00010177,2]
[420846753,1776630633953,-150.0,0.00010177,2]
[420846754,1776630633962,-150.0,0.00010177,2]
[420846755,1776630633972,-150.0,0.00010177,2]
[420846756,1776630633982,-150.0,0.00010177,2]
[420846757,1776630633991,-150.0,0.00010177,2]
[420846758,1776630634000,-22640.93288535,0.00010177,2]
[420846803,1776630640318,-2359.05711465,0.00010177,2]
[420846804,1776630640328,-9999.99,0.00010177,2]
[420846805,1776630640338,-2957.654,0.00010177,2]
[420846806,1776630640347,-154.531,0.00010177,2]
[420846807,1776630640357,-74845.01086537,0.00010178,2]
[420846808,1776630640386,-566.34509435,0.00010178,2]
[420846809,1776630640397,-1141.47131779,0.00010178,2]
[420846810,1776630640408,-328274.33081677,0.00010178,2]
[420846811,1776630640461,-14802.157581,0.00010178,2]
[420846812,1776630640479,-603.56339845,0.00010178,2]
[420846813,1776630640508,-6730.3,0.00010178,2]
[420846814,1776630640907,-749.46900635,0.00010178,2]
[420846815,1776630640971,-91.62248823,0.00010178,2]
[420846816,1776630640983,-7615.0,0.00010178,2]
[420846817,1776630641534,-253.00266847,0.00010178,2]
[420846824,1776630642983,-2407.57469831,0.00010178,2]
[420846908,1776630645311,500.0,9.902e-05,2]
[420846909,1776630645468,500.0,9.902e-05,2]
[420846910,1776630645643,300.76624054,9.902e-05,2]
[420846911,1776630645706,-6441.14199979,0.00010178,2]
[420846912,1776630645719,-6345.07328408,0.00010178,2]
[420846917,1776630646620,-10145.03424842,0.00010178,2]
[420846918,1776630646630,-5110.37493883,0.00010178,2]
[420846919,1776630646642,-5460.00000146,0.00010178,2]
[420846920,1776630646653,-1685.999998,0.00010178,2]
[420846921,1776630646665,-137378.2659602,0.00010178,2]
[420846922,1776630672262,5553.77823487,9.978e-05,2]
[420846923,1776630672288,10000.01,9.978e-05,2]
[420846924,1776630672313,10000.01,9.978e-05,2]
[420846925,1776630672338,10000.01,9.978e-05,2]
[420846926,1776630672363,10000.01,9.978e-05,2]
[420846927,1776630672387,10000.01,9.978e-05,2]
[420846928,1776630672412,10000.01,9.978e-05,2]
[420846929,1776630672437,10000.01,9.978e-05,2]
[420846930,1776630672462,10000.01,9.978e-05,2]
[420846931,1776630672486,10000.01,9.978e-05,2]
[420846932,1776630689263,150.0,0.00013,120]
[420846933,1776630696236,-188.11,9.205e-05,2]
[420846934,1776630696265,-201.09,9.446e-05,2]
[420846935,1776630696295,-150.0,9.678e-05,2]
[420846936,1776630696323,-3117.136,9.778e-05,2]
[420846937,1776630696351,-156.774,9.778e-05,2]
[420846938,1776630696380,-500.0,9.902e-05,2]
[420846939,1776630696409,-500.0,9.902e-05,2]
[420846940,1776630696591,-500.0,9.902e-05,2]
[420846941,1776630696622,-500.0,9.902e-05,2]
[420846942,1776630696652,-336.9945,9.902e-05,2]
[420846943,1776630696683,-376.24,9.928e-05,2]
[420846945,1776630727303,601.0,9.928e-05,3]
[420846946,1776630747396,151.0,9.975e-05,2]
[420846947,1776630749723,150.0,9.678e-05,2]
[420846948,1776630783988,150.0,9.977e-05,2]
[420846949,1776630785447,500.0,9.977e-05,2]
[420846950,1776630785509,261.77128409,9.977e-05,2]
[420846951,1776630785702,500.0,9.977e-05,2]
[420846952,1776630785859,500.0,9.977e-05,2]
[420846953,1776630786042,500.0,9.977e-05,2]
[420846954,1776630789358,571.0,9.678e-05,3]
[420846955,1776630798159,500.0,9.977e-05,2]
[420846956,1776630798253,500.0,9.977e-05,2]
[420846957,1776630798310,500.0,9.977e-05,2]
[420846958,1776630798347,500.0,9.977e-05,2]
[420846959,1776630798451,500.0,9.977e-05,2]
[420846960,1776630798485,188.76971591,9.977e-05,2]
[420846961,1776630798513,311.23028409,9.977e-05,2]
[420846962,1776630798551,500.0,9.977e-05,2]
[420846963,1776630798585,500.0,9.977e-05,2]
[420846964,1776630798619,500.0,9.977e-05,2]
[420846965,1776630798653,500.0,9.977e-05,2]
[420846966,1776630798686,500.0,9.977e-05,2]
[420846967,1776630798720,500.0,9.977e-05,2]
[420846968,1776630798755,500.0,9.977e-05,2]
[420846969,1776630798793,500.0,9.977e-05,2]
[420846970,1776630798829,500.0,9.977e-05,2]
[420846971,1776630798863,500.0,9.977e-05,2]
[420846972,1776630798896,500.0,9.977e-05,2]
[420846973,1776630798929,500.0,9.977e-05,2]
[420846974,1776630798969,500.0,9.977e-05,2]
[420846975,1776630799003,500.0,9.977e-05,2]
[420846976,1776630799043,500.0,9.977e-05,2]
[420846977,1776630799076,500.0,9.977e-05,2]
[420846978,1776630799598,500.0,9.977e-05,2]
[420846979,1776630799633,500.0,9.977e-05,2]
[420846980,1776630799674,500.0,9.977e-05,2]
[420846981,1776630799708,188.77971591,9.977e-05,2]
[420846982,1776630799734,311.22028409,9.977e-05,2]
[420846983,1776630799766,500.0,9.977e-05,2]
[420846984,1776630799804,500.0,9.977e-05,2]
[420846985,1776630799837,500.0,9.977e-05,2]
[420846986,1776630799872,500.0,9.977e-05,2]
[420846987,1776630799907,500.0,9.977e-05,2]
[420846988,1776630799940,500.0,9.977e-05,2]
[420846989,1776630800010,500.0,9.977e-05,2]
[420846990,1776630800093,500.0,9.977e-05,2]
[420846991,1776630800142,500.0,9.977e-05,2]
[420846992,1776630800175,500.0,9.977e-05,2]
[420846993,1776630800208,500.0,9.977e-05,2]
[420846997,1776630815006,1500.0,9.44e-05,2]
[420846998,1776630815480,500.0,9.977e-05,2]
[420846999,1776630815523,500.0,9.977e-05,2]
[420847000,1776630815563,500.0,9.977e-05,2]
[420847001,1776630815602,500.0,9.977e-05,2]
[420847002,1776630815644,500.0,9.977e-05,2]
[420847003,1776630815703,188.78971591,9.977e-05,2]
[420847004,1776630815731,311.21028409,9.977e-05,2]
[420847005,1776630815777,500.0,9.977e-05,2]
[420847006,1776630815816,500.0,9.977e-05,2]
[420847007,1776630815856,500.0,9.977e-05,2]
[420847008,1776630815905,500.0,9.977e-05,2]
[420847009,1776630815940,500.0,9.977e-05,2]
[420847010,1776630815981,500.0,9.977e-05,2]
[420847011,1776630816022,500.0,9.977e-05,2]
[420847012,1776630816059,500.0,9.977e-05,2]
[420847013,1776630816098,500.0,9.977e-05,2]
[420847014,1776630816134,500.0,9.977e-05,2]
[420847015,1776630816170,500.0,9.977e-05,2]
[420847016,1776630816208,500.0,9.977e-05,2]
[420847017,1776630816244,500.0,9.977e-05,2]
[420847018,1776630816282,500.0,9.977e-05,2]
[420847019,1776630816356,500.0,9.977e-05,2]
[420847020,1776630816394,500.0,9.977e-05,2]
[420847021,1776630816431,500.0,9.977e-05,2]
[420847022,1776630816474,500.0,9.977e-05,2]
[420847023,1776630816516,500.0,9.977e-05,2]
[420847024,1776630816561,188.79971591,9.977e-05,2]
[420847025,1776630816590,311.20028409,9.977e-05,2]
[420847026,1776630816629,500.0,9.977e-05,2]
[420847027,1776630816677,500.0,9.977e-05,2]
[420847028,1776630816845,500.0,9.977e-05,2]
[420847029,1776630817903,151.0,9.975e-05,2]
[420847030,1776630822169,257.86828868,9.977e-05,2]
[420847031,1776630823285,150.0,9.678e-05,2]
[420847032,1776630824051,500.0,9.977e-05,2]
[420847033,1776630826111,382.91993862,9.977e-05,2]
[420847034,1776630827746,500.0,9.977e-05,2]
[420847035,1776630827797,514.69375831,9.977e-05,2]
[420847036,1776630840151,500.0,9.977e-05,2]
[420847037,1776630840183,174.22241371,9.977e-05,2]
[420847038,1776630840346,500.0,9.977e-05,2]
[420847039,1776630840758,500.0,9.977e-05,2]
[420847040,1776630841021,500.0,9.977e-05,2]
[420847041,1776630841175,500.0,9.977e-05,2]
[420847042,1776630847942,500.0,9.977e-05,2]
[420847043,1776630847979,500.0,9.977e-05,2]
[420847044,1776630848016,338.23125277,9.977e-05,2]
[420847045,1776630861919,500.0,9.977e-05,2]
[420847046,1776630861970,500.0,9.977e-05,2]
[420847047,1776630862025,338.23125277,9.977e-05,2]
[420847048,1776630869361,270.0,9.977e-05,2]
[420847049,1776630873317,111.64281105,9.977e-05,2]
[420847050,1776630873340,54.24464553,9.977e-05,2]
[420847051,1776630873646,500.0,9.977e-05,2]
[420847052,1776630873686,500.0,9.977e-05,2]
[420847053,1776630873720,500.0,9.977e-05,2]
[420847054,1776630873755,408.81625499,9.977e-05,2]
[420847055,1776630873796,500.0,9.977e-05,2]
[420847056,1776630881247,500.0,9.977e-05,2]
[420847057,1776630881299,500.0,9.977e-05,2]
[420847058,1776630881365,338.23125277,9.977e-05,2]
[420847059,1776630887195,150.0,0.00013,120]
[420847060,1776630889221,150.0,9.68e-05,2]
[420847061,1776630900189,500.0,9.977e-05,2]
[420847062,1776630900230,500.0,9.977e-05,2]
[420847063,1776630900264,338.23125277,9.977e-05,2]
[420847064,1776630901011,173.0,9.977e-05,2]
[420847065,1776630901077,1200.0,9.977e-05,2]
[420847066,1776630912731,481.03091058,9.977e-05,2]
[420847067,1776630912990,666.0,9.68e-05,3]
[420847068,1776630917801,500.0,9.977e-05,2]
[420847069,1776630917857,500.0,9.977e-05,2]
[420847070,1776630917913,338.23125277,9.977e-05,2]
[420847071,1776630929799,150.0,9.977e-05,2]
[420847072,1776630931831,500.0,9.977e-05,2]
[420847073,1776630931883,202.22443059,9.977e-05,2]
[420847074,1776630931910,297.77556941,9.977e-05,2]
[420847075,1776630931966,500.0,9.977e-05,2]
[420847076,1776630932275,500.0,9.977e-05,2]
[420847077,1776630932357,408.81625499,9.977e-05,2]
[420847078,1776630953413,500.0,9.977e-05,2]
[420847079,1776630953452,500.0,9.977e-05,2]
[420847080,1776630953491,338.23125277,9.977e-05,2]
[420847081,1776630956672,183.3,7.487e-05,2]
[420847082,1776630960280,150.0,9.679e-05,2]
[420847083,1776630962882,6621.88692283,9.927e-05,2]
[420847084,1776630962905,175.77238117,9.927e-05,2]
[420847085,1776630963048,172.60117825,9.977e-05,2]
[420847086,1776630963082,300.0,9.977e-05,2]
[420847087,1776630967696,683.0,9.68e-05,3]
[420847088,1776630971855,196.15938808,9.977e-05,2]
[420847089,1776630971941,347.307961,9.977e-05,2]
[420847090,1776630972657,500.0,9.977e-05,2]
[420847091,1776630972715,500.0,9.977e-05,2]
[420847092,1776630972764,300.0,9.977e-05,2]
[420847093,1776630975612,500.0,9.977e-05,2]
[420847094,1776631007704,500.0,9.977e-05,2]
[420847095,1776631007785,500.0,9.977e-05,2]
[420847096,1776631007827,500.0,9.977e-05,2]
[420847097,1776631008362,500.0,9.977e-05,2]
[420847098,1776631008396,500.0,9.977e-05,2]
[420847099,1776631008430,500.0,9.977e-05,2]
[420847100,1776631008462,500.0,9.977e-05,2]
[420847101,1776631008495,257.35376906,9.977e-05,2]
[420847102,1776631028126,178.0,9.68e-05,3]
[420847103,1776631028315,150.0,9.678e-05,2]
[420847104,1776631028706,500.0,9.977e-05,2]
[420847105,1776631030930,151.0,9.68e-05,3]
[420847106,1776631039939,151.0,9.975e-05,2]
[420847107,1776631041317,231.0,0.00013699,30]
[420847108,1776631043029,159.12,9.281e-05,2]
[420847109,1776631043123,159.12,9.944e-05,2]
[420847110,1776631070817,200.0,9.282e-05,2]
[420847111,1776631073870,150.0,0.000139,120]
[420847112,1776631081444,300.0,9.977e-05,2]
[420847113,1776631087533,619.57532244,9.68e-05,3]
[420847114,1776631087558,198.42467756,9.68e-05,3]
[420847115,1776631092329,150.0,9.678e-05,2]
[420847116,1776631093815,151.0,9.68e-05,3]
[420847118,1776631145384,150.0,9.977e-05,2]
[420847119,1776631145511,200.0,9.9e-05,3]
[420847120,1776631145681,500.0,9.977e-05,2]
[420847121,1776631145726,151.0,9.68e-05,3]
[420847122,1776631145773,500.0,9.977e-05,2]
[420847123,1776631145821,500.0,9.977e-05,2]
[420847124,1776631145877,431.35547156,9.977e-05,2]
[420847125,1776631150290,152.0,9.68e-05,3]
[420847126,1776631159094,500.0,9.977e-05,2]
[420847127,1776631159135,500.0,9.977e-05,2]
[420847128,1776631159168,500.0,9.977e-05,2]
[420847129,1776631159201,500.0,9.977e-05,2]
[420847130,1776631159236,500.0,9.977e-05,2]
[420847131,1776631159274,613.28545677,9.977e-05,2]
[420847132,1776631159313,500.0,9.977e-05,2]
[420847133,1776631159369,500.0,9.977e-05,2]
[420847134,1776631159413,500.0,9.977e-05,2]
[420847135,1776631159455,500.0,9.977e-05,2]
[420847136,1776631160622,150.0,9.678e-05,2]
[420847137,1776631173877,268.04395704,9.977e-05,2]
[420847138,1776631175028,1384.90043707,9.878e-05,2]
[420847139,1776631175050,3262.90056293,9.878e-05,2]
[420847140,1776631185811,500.0,9.977e-05,2]
[420847141,1776631186117,500.0,9.977e-05,2]
[420847142,1776631186350,509.26726125,9.977e-05,2]
[420847143,1776631186396,500.0,9.977e-05,2]
[420847144,1776631201125,300.0,9.977e-05,2]
[420847145,1776631201154,300.0,9.977e-05,2]
[420847146,1776631201318,300.0,9.977e-05,2]
[420847147,1776631201392,1200.0,9.977e-05,2]
[420847148,1776631205870,976.0,9.68e-05,3]
[420847149,1776631206092,151.0,9.68e-05,3]
[420847150,1776631211702,152.0,9.68e-05,3]
[420847151,1776631226122,150.0,0.00016226,30]
[420847152,1776631226470,457.54246218,9.977e-05,2]
[420847153,1776631226819,150.0,9.678e-05,2]
[420847154,1776631262716,150.0,0.00015,120]
[420847155,1776631265781,741.29971364,9.68e-05,3]
[420847156,1776631265806,185.70028636,9.68e-05,3]
[420847157,1776631292991,2493.709,9.778e-05,2]
[420847158,1776631293068,156.774,9.778e-05,2]
[420847159,1776631296113,386.1957,9.878e-05,2]
[420847160,1776631302378,150.0,9.678e-05,2]
[420847161,1776631320600,500.0,9.878e-05,2]
[420847162,1776631321140,300.0,9.977e-05,2]
[420847163,1776631322194,150.0,9.977e-05,2]
[420847164,1776631323047,300.0,9.977e-05,2]
[420847165,1776631327920,186.0,9.68e-05,3]
[420847166,1776631333532,152.0,9.68e-05,3]
[420847168,1776631389149,1143.0,9.68e-05,3]
[420847169,1776631394157,3896.63101364,9.878e-05,2]
[420847170,1776631394185,10000.01,9.878e-05,2]
[420847171,1776631394209,10000.01,9.878e-05,2]
[420847172,1776631394232,10000.01,9.878e-05,2]
[420847173,1776631394255,10000.01,9.878e-05,2]
[420847174,1776631394280,5000.01,9.878e-05,2]
[420847175,1776631394302,5000.01,9.878e-05,2]
[420847176,1776631394324,5000.01,9.878e-05,2]
[420847177,1776631394346,5000.01,9.878e-05,2]
[420847178,1776631394368,5000.01,9.878e-05,2]
[420847179,1776631394390,5000.01,9.878e-05,2]
[420847180,1776631394414,3456.40218636,9.878e-05,2]
[420847182,1776631433378,150.0,9.678e-05,2]
[420847183,1776631441149,300.0,9.977e-05,2]
[420847184,1776631446655,261.25,0.00015,120]
[420847185,1776631448115,1086.0,9.678e-05,3]
[420847186,1776631450886,232.99121597,0.00016226,30]
[420847187,1776631454382,152.0,9.678e-05,3]
[420847188,1776631456122,1034.0,9.977e-05,2]
[420847189,1776631459606,500.0,9.977e-05,2]
[420847190,1776631459656,500.0,9.977e-05,2]
[420847191,1776631459815,338.23125277,9.977e-05,2]
[420847192,1776631501255,300.0,9.977e-05,2]
[420847193,1776631501291,1200.0,9.977e-05,2]
[420847194,1776631501931,150.0,9.977e-05,2]
[420847195,1776631502854,300.0,9.977e-05,2]
[420847196,1776631512118,164.0,9.977e-05,3]
[420847197,1776631515834,152.0,9.977e-05,3]
[420847198,1776631519098,151.0,9.977e-05,3]
[420847199,1776631519720,150.0,9.148e-05,2]
[420847200,1776631525790,150.0,9.148e-05,2]
[420847201,1776631525833,150.0,9.221e-05,2]
[420847202,1776631525903,150.0,9.293e-05,2]
[420847203,1776631525979,150.0,9.366e-05,2]
[420847204,1776631526043,150.0,9.438e-05,2]
[420847205,1776631526114,150.0,9.511e-05,2]
[420847206,1776631526197,150.0,9.584e-05,2]
[420847207,1776631526320,150.0,9.656e-05,2]
[420847208,1776631526351,150.0,9.729e-05,2]
[420847209,1776631526403,150.0,9.801e-05,2]
[420847210,1776631526471,150.0,9.874e-05,2]
[420847211,1776631526543,150.0,9.947e-05,2]
[420847212,1776631527018,150.0,9.148e-05,2]
[420847213,1776631527063,150.0,9.216e-05,2]
[420847214,1776631527131,150.0,9.148e-05,2]
[420847215,1776631527163,150.0,9.283e-05,2]
[420847216,1776631527199,150.0,9.351e-05,2]
[420847217,1776631527271,150.0,9.419e-05,2]
[420847218,1776631527339,150.0,9.487e-05,2]
[420847219,1776631527411,150.0,9.555e-05,2]
[420847220,1776631527479,150.0,9.622e-05,2]
[420847221,1776631527549,150.0,9.69e-05,2]
[420847222,1776631527618,72.77874723,9.758e-05,2]
[420847223,1776631527641,77.22125277,9.758e-05,2]
[420847224,1776631527691,150.0,9.826e-05,2]
[420847225,1776631527761,150.0,9.893e-05,2]
[420847226,1776631527832,150.0,9.961e-05,2]
[420847227,1776631529600,500.0,9.977e-05,2]
[420847228,1776631529649,500.0,9.977e-05,2]
[420847229,1776631529684,500.0,9.977e-05,2]
[420847230,1776631529728,500.0,9.977e-05,2]
[420847231,1776631529770,500.0,9.977e-05,2]
[420847232,1776631529808,500.0,9.977e-05,2]
[420847233,1776631529845,500.0,9.977e-05,2]
[420847234,1776631529884,500.0,9.977e-05,2]
[420847235,1776631529927,472.78874723,9.977e-05,2]
[420847236,1776631529954,27.21125277,9.977e-05,2]
[420847237,1776631530063,500.0,9.977e-05,2]
[420847238,1776631530110,500.0,9.977e-05,2]
[420847239,1776631530143,500.0,9.977e-05,2]
[420847240,1776631530186,500.0,9.977e-05,2]
[420847241,1776631530237,500.0,9.977e-05,2]
[420847242,1776631530274,500.0,9.977e-05,2]
[420847243,1776631530345,500.0,9.977e-05,2]
[420847244,1776631530411,500.0,9.977e-05,2]
[420847245,1776631530444,500.0,9.977e-05,2]
[420847246,1776631530486,472.79874723,9.977e-05,2]
[420847247,1776631530513,27.20125277,9.977e-05,2]
[420847248,1776631530549,500.0,9.977e-05,2]
[420847249,1776631530602,500.0,9.977e-05,2]
[420847250,1776631530641,500.0,9.977e-05,2]
[420847251,1776631530674,168.63420309,9.977e-05,2]
[420847252,1776631530721,500.0,9.977e-05,2]
[420847253,1776631530759,500.0,9.977e-05,2]
[420847254,1776631531665,150.0,9.148e-05,2]
[420847255,1776631531739,150.0,9.351e-05,2]
[420847256,1776631531811,150.0,9.555e-05,2]
[420847257,1776631531881,150.0,9.758e-05,2]
[420847258,1776631531948,150.0,9.961e-05,2]
[420847259,1776631533109,150.0,9.148e-05,2]
[420847260,1776631533208,150.0,9.487e-05,2]
[420847261,1776631538786,150.0,9.826e-05,2]
[420847262,1776631539017,150.0,9.148e-05,2]
[420847263,1776631539051,150.0,9.192e-05,2]
[420847264,1776631539085,150.0,9.236e-05,2]
[420847265,1776631539150,150.0,9.281e-05,2]
[420847266,1776631539188,150.0,9.325e-05,2]
[420847267,1776631539235,150.0,9.369e-05,2]
[420847268,1776631539294,150.0,9.413e-05,2]
[420847269,1776631539334,54.17454414,9.457e-05,2]
[420847270,1776631539363,95.82545586,9.457e-05,2]
[420847271,1776631539442,150.0,9.501e-05,2]
[420847272,1776631539500,150.0,9.546e-05,2]
[420847273,1776631539557,150.0,9.59e-05,2]
[420847274,1776631539605,150.0,9.634e-05,2]
[420847275,1776631539644,150.0,9.678e-05,2]
[420847276,1776631539706,150.0,9.722e-05,2]
[420847277,1776631539745,150.0,9.767e-05,2]
[420847278,1776631539829,150.0,9.811e-05,2]
[420847279,1776631539891,150.0,9.855e-05,2]
[420847280,1776631539985,150.0,9.899e-05,2]
[420847281,1776631540035,150.0,9.943e-05,2]
[420847282,1776631543505,500.0,9.977e-05,2]
[420847283,1776631543541,500.0,9.977e-05,2]
[420847284,1776631543795,500.0,9.977e-05,2]
[420847285,1776631543826,150.0,9.148e-05,2]
[420847286,1776631543866,500.0,9.977e-05,2]
[420847287,1776631543905,500.0,9.977e-05,2]
[420847288,1776631543936,150.0,9.199e-05,2]
[420847289,1776631543972,500.0,9.977e-05,2]
[420847290,1776631544011,150.0,9.25e-05,2]
[420847291,1776631544046,500.0,9.977e-05,2]
[420847292,1776631544157,500.0,9.977e-05,2]
[420847293,1776631544203,500.0,9.977e-05,2]
[420847294,1776631544234,150.76784931,9.148e-05,2]
[420847295,1776631544265,150.0,9.3e-05,2]
[420847296,1776631544296,150.0,9.351e-05,2]
[420847297,1776631544327,150.0,9.402e-05,2]
[420847298,1776631544367,150.0,9.453e-05,2]
[420847299,1776631544405,168.63420309,9.977e-05,2]
[420847300,1776631544439,150.0,9.504e-05,2]
[420847301,1776631544481,150.0,9.555e-05,2]
[420847302,1776631544515,150.0,9.605e-05,2]
[420847303,1776631544556,150.0,9.707e-05,2]
[420847304,1776631544587,150.0,9.758e-05,2]
[420847305,1776631544621,150.0,9.809e-05,2]
[420847306,1776631544655,150.0,9.656e-05,2]
[420847307,1776631544689,150.0,9.859e-05,2]
[420847308,1776631544735,150.0,9.91e-05,2]
[420847309,1776631544810,150.0,9.961e-05,2]